Cogmind - Beta 16 *** ADVENTURER MODE // 2025.12.25 @ 22:58:29 Player: Gentle Jesus Result: Destroyed by H-77 Assassin with High-powered Shotgun Performance ------------- Evolutions (7) 3500 Regions Visited (20) 4000 Robots Destroyed (75) 375 Value Destroyed (2567) 2567 Prototype IDs (24) 480 Alien Tech Used (2) 400 Bonus (3143) 3143 TOTAL SCORE: 14465 Bonus ------- Follower Combat Kills 1962 Met Data Miner 300 Met Zhirov 300 A7 Reached Mainframe 300 Met R17 at Cetus 500 Friendly Fire -219 Cogmind --------- Core Integrity 0/1300 Matter 168/300 Energy 180/180 System Corruption 13% Temperature Cool (0) Movement Core (250) Ox4 Location -3/Research Parts ------- > --- POWER (2) -------- Light Particle Reactor > --- PROPULSION (6) --- (None) > --- UTILITY (9) ------ (None) > --- WEAPON (4) ------- (None) > --- INVENTORY (5) ---- High-capacity Matter Pod (200) Disruptor Cannon Molecular Deconstructor Peak State ------------ > --- POWER ------------ Light Antimatter Reactor Quantum Reactor > --- PROPULSION ------- Antigrav System Improved Antigrav System Improved Antigrav System Improved Antigrav System Improved Antigrav System Improved Linear Gravjet > --- UTILITY ---------- Advanced Cryofiber Web Advanced Heat Sink Advanced Heat Sink Advanced Heat Sink Medium Storage Unit Advanced Sensor Array Improved Core Shielding Hardened Medium Armor Plating Centrium Medium Armor Plating > --- WEAPON ----------- Phase Gun Advanced Variable Charge Gun Advanced KE Penetrator > --- INVENTORY -------- Neutrino Core Light Antimatter Reactor Antigrav System Advanced Heat Sink High-capacity Matter Pod Improved Sensor Array Transdimensional Reconstructor Dispersion Rifle Molecular Deconstructor [Rating: 131] Favorites ----------- Power Light Nuclear Core Engine Ion Engine Power Core Light Nuclear Core Reactor Fusion Reactor Propulsion Advanced Myomer Leg Leg Advanced Myomer Leg Wheel Compact Wheel Hover Unit Improved Antigrav System Flight Unit Flight Unit Utility Small Storage Unit Device Advanced Heat Sink Storage Small Storage Unit Processor Machine Analyzer Hackware Hacking Suite Protection Improved Medium Armor Plating Weapon Great Maul Energy Gun Phase Gun Energy Cannon Long-range Proton Cannon Ballistic Gun KE Penetrator Ballistic Cannon Linear Accelerator Launcher Gamma Bomb Array Special Weapon Molecular Deconstructor Impact Weapon Great Maul Slashing Weapon Mining Claw Build | -11 -10 -10 -9 -8 -7 -7 -7 -7 -6 -6 -5 -5 -5 -5 -4 -4 -4 -4 -4 -3 ------- Run | Yrd Mat Min Mat Mat Fac Low Low Dat Pro Fac Fac Upp Upp Zhi Pro Fac Ext Cet Arc Res Slots Evolved 14 | . . . 2 2 2 . . . . 2 2 . . . . 2 . . . 2 Power 1 | . . . . . 1 . . . . . . . . . . . . . . . Propulsion 4 | . . . 2 . 1 . . . . 1 . . . . . . . . . . Utility 7 | . . . . 2 . . . . . 1 2 . . . . . . . . 2 Weapon 2 | . . . . . . . . . . . . . . . . 2 . . . . Parts Attached 128 | 7 . 1 5 7 2 4 2 . . 2 4 4 . 5 1 7 27 8 1 41 Power 17 | 1 . . 1 1 . 1 . . . . . 1 . 1 . . 4 1 . 6 Engine 6 | 1 . . 1 1 . . . . . . . . . . . . . . . 3 Core 5 | . . . . . . 1 . . . . . 1 . . . . 3 . . . Reactor 6 | . . . . . . . . . . . . . . 1 . . 1 1 . 3 Propulsion 50 | 2 . . 4 4 . . 1 . . . . 2 . 3 . 1 13 . . 20 Treads . | . . . . . . . . . . . . . . . . . . . . . Leg 15 | . . . . . . . . . . . . . . 3 . . 6 . . 6 Wheel 11 | 2 . . . . . . . . . . . . . . . 1 . . . 8 Hover 11 | . . . . . . . . . . . . . . . . . 7 . . 4 Flight 13 | . . . 4 4 . . 1 . . . . 2 . . . . . . . 2 Utility 35 | 2 . . . 1 2 . . . . 2 3 . . 1 . 5 7 5 1 6 Device 17 | 1 . . . . 1 . . . . 1 1 . . . . 1 5 2 1 4 Storage 2 | 1 . . . . . . . . . . . . . . . 1 . . . . Processor 7 | . . . . 1 1 . . . . 1 2 . . . . 1 . . . 1 Hackware 1 | . . . . . . . . . . . . . . . . 1 . . . . Protection 8 | . . . . . . . . . . . . . . 1 . 1 2 3 . 1 Artifact . | . . . . . . . . . . . . . . . . . . . . . Weapon 26 | 2 . 1 . 1 . 3 1 . . . 1 1 . . 1 1 3 2 . 9 Energy Gun 9 | . . . . . . 1 . . . . . . . . 1 . 2 1 . 4 Energy Cannon 4 | . . . . 1 . . . . . . . 1 . . . 1 . . . 1 Ballistic Gun 6 | 2 . . . . . 1 . . . . . . . . . . 1 1 . 1 Ballistic Cannon 1 | . . . . . . . . . . . . . . . . . . . . 1 Launcher 2 | . . . . . . . 1 . . . . . . . . . . . . 1 Special Weapon 1 | . . . . . . 1 . . . . . . . . . . . . . . Impact Weapon 1 | . . . . . . . . . . . 1 . . . . . . . . . Slashing Weapon 2 | . . 1 . . . . . . . . . . . . . . . . . 1 Piercing Weapon . | . . . . . . . . . . . . . . . . . . . . . Special Melee Weapon . | . . . . . . . . . . . . . . . . . . . . . Unidentified Prototypes 10 | . . . . 1 . 1 . . . . . . . 4 . . . 3 . 1 Parts Lost 76 | . . . 3 . . 2 2 . . . . 6 . . . 1 6 1 1 54 Power 11 | . . . 1 . . . . . . . . 2 . . . . . . . 8 Propulsion 29 | . . . . . . . 2 . . . . 3 . . . . . . 1 23 Utility 18 | . . . 1 . . . . . . . . . . . . . 4 1 . 12 Weapon 18 | . . . 1 . . 2 . . . . . 1 . . . 1 2 . . 11 Highest Loss Streak 20 | . . . 2 . . 1 1 . . . . 5 . . . 1 4 1 1 20 To Critical Strikes 2 | . . . . . . . . . . . . . . . . . . . . 2 Average Backups 6 | 1 3 7 5 6 6 6 6 5 5 5 7 5 5 5 5 6 7 8 9 4 Power 1 | . 1 1 . . 1 1 1 1 1 1 1 1 1 1 1 1 2 3 3 . Propulsion . | . 1 5 2 2 3 3 2 1 1 . . . . . . . . . . . Utility 1 | . . . 1 1 1 1 1 1 1 1 3 2 2 2 2 2 2 3 4 1 Weapon 1 | . 1 1 1 2 1 1 1 2 2 2 3 2 2 1 1 2 1 1 1 1 Tool/Special . | . . . . . . . . . . . . . . . . . . . . . Unused Backups 7 | . . . . . 1 . . . . 1 . . . . . 1 2 . . 2 Power 1 | . . . . . . . . . . . . . . . . . 1 . . . Propulsion 1 | . . . . . . . . . . 1 . . . . . . . . . . Utility 2 | . . . . . . . . . . . . . . . . 1 . . . 1 Weapon 3 | . . . . . 1 . . . . . . . . . . . 1 . . 1 Tool/Special . | . . . . . . . . . . . . . . . . . . . . . Average Slot Usage (%) 78 | . 100 100 78 65 76 84 92 92 92 79 78 77 70 75 82 81 90 97 97 49 Engine 3 | . 14 14 11 9 7 7 7 7 7 6 5 . . . . . . . . 1 Core 3 | . . . . . . . 7 7 7 6 5 7 5 5 5 4 5 3 . . Reactor 2 | . . . . . . . . . . . . . . 3 5 5 4 6 10 3 Leg 7 | . . . . . . . . . . . . . . 10 17 15 21 . . 5 Wheel 3 | . 28 28 . . . . . . . . . . . . . 2 . . . 3 Hover 4 | . . . . . . . . . . . . . . . . . 7 31 28 8 Flight 8 | . . . 40 36 38 38 38 38 38 33 29 27 23 8 . . . . . 1 Device 9 | . 14 14 5 . 1 7 7 7 7 9 10 11 11 11 11 5 11 15 15 7 Storage 5 | . 14 14 11 9 7 7 7 7 7 6 5 5 5 5 5 5 5 5 5 2 Processor 6 | . . . . 5 13 15 15 15 15 14 17 17 17 17 17 11 4 . . 1 Hackware 1 | . . . . . . . . . . . . . . . . 3 5 5 5 . Protection 3 | . . . . . . . . . . . . . . 2 5 9 5 8 10 3 Energy Gun 2 | . . . . . . 1 . . . . . . . . 3 3 2 8 10 4 Energy Cannon 2 | . . . . 5 7 4 . . . . . . . 2 5 8 5 . . . Ballistic Gun 3 | . 28 14 . . . 1 7 7 7 1 . . . . . . 4 5 5 1 Impact Weapon 2 | . . . . . . . . . . . 2 4 5 5 1 3 5 5 5 . Slashing Weapon 1 | . . 13 9 . . . . . . . . . . . . . . . . . Peak Build Rating 131 | 7 7 7 9 21 26 41 33 29 29 35 47 59 42 73 77 95 111 122 122 131 Average Rating 61 | 5 7 6 7 12 24 26 29 29 29 30 42 43 42 60 75 85 98 114 118 63 On Entrance 44 | . 7 7 7 6 21 26 29 29 29 29 35 44 42 42 73 77 89 103 122 115 Avg Prop Armor Cover (%) 4 | . . . . . . . . . . . . . . . . 5 5 . . 3 Naked Turns 26 | . . . . . . . . . . . . . . . . . . . . 26 Heaviest Build 82 | 14 14 15 15 16 17 19 19 19 19 19 24 21 16 38 39 63 73 81 81 82 Greatest Support 155 | 32 32 32 16 18 22 22 22 22 22 25 25 29 18 90 90 90 155 71 71 125 Greatest Overweight (x) 18 | . . . . . . . . . . . . . . . . . 18 1 1 4 Average Overweight (x) . | . . . . . . . . . . . . . . . . . . . 1 . Largest Inventory Capacity 10 | 8 8 8 8 8 8 8 8 8 8 8 8 8 8 8 8 10 10 10 10 10 Average Capacity 8 | 7 8 8 8 8 8 8 8 8 8 8 8 8 8 8 8 8 10 10 10 7 Most Carried 10 | 3 7 8 8 8 8 8 8 6 6 8 8 8 6 7 8 8 10 10 10 10 Average Carried 7 | 1 3 7 5 6 6 7 7 6 6 6 7 6 6 6 6 7 9 9 10 5 Final Capacity 10 | 8 8 8 8 8 8 8 8 8 8 8 8 8 8 8 8 10 10 10 10 5 Final Carried 10 | 3 7 8 5 8 7 8 6 6 6 8 8 6 6 6 8 8 10 10 10 4 Class Distribution -------------------- 18% | Mutant 11% | Scavenger-Tank 9% | Hacker-Assassin 9% | Scavenger-Mutant 7% | Scout 7% | Scavenger-Sprinter 7% | Skirmisher 6% | Commander-Mutant 5% | Sprinter 5% | Scavenger-Assassin 4% | Scavenger-Scout 3% | Gunner Dominant Class ---------------- Mutant | -10/Materials Mutant | -10/Mines Scavenger-Sprinter | -9/Materials Sprinter | -8/Materials Sprinter | -7/Factory Sprinter | -7/Lower Caves Scavenger-Sprinter | -7/Lower Caves Scavenger-Sprinter | -7/Data Miner Scavenger-Sprinter | -6/Proximity Caves Scavenger-Sprinter | -6/Factory Scavenger-Scout | -5/Factory Scout | -5/Upper Caves Scout | -5/Upper Caves Assassin | -5/Zhirov Skirmisher | -4/Proximity Caves Hacker-Assassin | -4/Factory Commander-Mutant | -4/Extension Scavenger-Tank | -4/Cetus Scavenger-Tank | -4/Archives Mutant | -3/Research Resources | -11 -10 -10 -9 -8 -7 -7 -7 -7 -6 -6 -5 -5 -5 -5 -4 -4 -4 -4 -4 -3 ----------- Run | Yrd Mat Min Mat Mat Fac Low Low Dat Pro Fac Fac Upp Upp Zhi Pro Fac Ext Cet Arc Res Matter Collected 2480 | 303 35 145 57 131 . 102 61 . . . 108 103 9 . 90 93 415 176 68 584 Remotely . | . . . . . . . . . . . . . . . . . . . . . Salvage Created 3617 | 91 50 . 72 147 . 60 182 . . . 189 90 41 . 15 510 421 66 . 1683 Parts 154 | 7 8 . 5 6 . 3 10 . . . 6 8 . . . 16 20 2 . 63 Haulers Intercepted 1 | . . . . 1 . . . . . . . . . . . . . . . . Recyclers Shooed 2 | . . . . . . . . . . . . . . . . . . . . 2 Parts Field Recycled . | . . . . . . . . . . . . . . . . . . . . . Retrieved Matter . | . . . . . . . . . . . . . . . . . . . . . Parts Self-Destructed 16 | . . . . . . 4 10 . . . . 2 . . . . . . . . Prevented 1 | . . . . . . 1 . . . . . . . . . . . . . . Parts Restored . | . . . . . . . . . . . . . . . . . . . . . Kills | -11 -10 -10 -9 -8 -7 -7 -7 -7 -6 -6 -5 -5 -5 -5 -4 -4 -4 -4 -4 -3 ------- Run | Yrd Mat Min Mat Mat Fac Low Low Dat Pro Fac Fac Upp Upp Zhi Pro Fac Ext Cet Arc Res Combat Hostiles Destroyed 49 | . 3 . 3 4 . 2 4 . . . . 5 . . 1 4 5 1 . 17 Melee 3 | . . . 3 . . . . . . . . . . . . . . . . . Guns 22 | . 3 . . . . 2 . . . . . . . . . . 2 1 . 14 Cannons 9 | . . . . 4 . . . . . . . . . . 1 2 2 . . . AOE 9 | . . . . . . . 4 . . . . 5 . . . . . . . . Classes Destroyed 15 | 2 1 . 2 2 . . 2 . . . . . 1 . 1 1 1 . . 2 Worker 6 | . . . 1 . . . . . . . 2 . . . . . . . . 3 Builder 4 | . . . . . . . . . . . . . . . . . 3 . . 1 Tunneler 3 | 2 . . . . . . . . . . . . . . . 1 . . . . Hauler 1 | . . . . 1 . . . . . . . . . . . . . . . . Recycler 7 | 1 . . . . . . . . . . 1 . . . . 1 . . . 4 Operator 3 | . . . . 1 . . . . . . 1 . . . . . 1 . . . Drone 1 | . . . . . . . . . . . . . . . 1 . . . . . Watcher 2 | . . . 1 . . . . . . . . . . . . . . . . 1 Swarmer 24 | . 3 . 3 4 . 2 . . . . . 5 . . . . 1 . . 6 Grunt 10 | . . . . . . . 3 . . . . . . . . 1 2 . . 4 Brawler 3 | . . . . . . . 1 . . . . . . . . 2 . . . . Duelist 2 | . . . . . . . . . . . . . . . . . . . . 2 Sentry 4 | . . . . . . . . . . . . . . . . 1 2 . . 1 Programmer 4 | . . . . . . . . . . . . . . . . . . . . 4 Cetus Guard 1 | . . . . . . . . . . . . . . . . . . 1 . . Packrat 1 | . . . . . . . . . . . . 1 . . . . . . . . Samaritan 1 | . . . . . . . . . . . . . 1 . . . . . . . Best Kill Streak 9 | 3 3 . 5 5 . 2 4 . . . 4 9 . . 1 2 2 1 . 9 Combat Bots Only 6 | . 3 . 3 4 . 2 4 . . . . 5 . . 1 2 1 1 . 6 Max Kills in Single Turn 3 | 1 1 . 1 1 . 1 3 . . . 1 3 1 . 1 1 1 1 . 1 Gunslinging . | . . . . . . . . . . . . . . . . . . . . . Exploded 3 | . . . . . . . 3 . . . . 3 . . . . . . . . Melee 1 | . . . 1 . . . . . . . . . . . . . . . . . Uniques/NPCs Destroyed . | . . . . . . . . . . . . . . . . . . . . . Combat | -11 -10 -10 -9 -8 -7 -7 -7 -7 -6 -6 -5 -5 -5 -5 -4 -4 -4 -4 -4 -3 -------- Run | Yrd Mat Min Mat Mat Fac Low Low Dat Pro Fac Fac Upp Upp Zhi Pro Fac Ext Cet Arc Res Hostile Shots Fired 951 | . 13 . 34 22 . 49 8 . . 9 . 36 . . . 46 100 43 30 561 Missed 359 | . 3 . 15 12 . 23 1 . . 5 . 13 . . . 19 25 18 9 216 Hits 592 | . 10 . 19 10 . 26 7 . . 4 . 23 . . . 27 75 25 21 345 Melee 5 | . . . . . . . . . . . . . . . . 2 . . . 3 Projectile 587 | . 10 . 19 10 . 26 7 . . 4 . 23 . . . 25 75 25 21 342 Critical Strikes 43 | . . . 1 . . . 1 . . . . 2 . . . 1 4 8 . 26 Part Disruptions 2 | . . . . . . . . . . . . . . . . . . . . 2 Damage Taken 9676 | . 81 . 145 72 . 246 93 . . 21 22 370 . . . 501 1588 348 448 5741 Core 1914 | . 4 . 24 15 . 93 23 . . 4 . 77 . . . 38 357 31 36 1212 Absorbed by Shields 704 | . . . . . . . . . . . . . . . . . 474 230 . . Redirected to Shielding 222 | . . . . . . . . . . . . . . . . 126 39 . . 57 Ignored by Resistances 2737 | . 27 . 44 22 . 70 28 . . 7 6 104 . . . 139 417 156 123 1594 Regen/Repaired (Parts) 62 | . . . . 18 . . . . . . . . . . . 44 . . . . Core Remaining (%) 90 | 100 . 98 94 97 . . . . 83 99 . . . . 92 . . . 59 . Volleys Fired 252 | 12 5 . . 11 2 8 2 . . 1 1 4 . . 4 20 58 21 15 88 Largest 3 | 2 2 . . 1 1 1 2 . . 1 1 1 . . 1 2 2 3 3 3 Hottest 256 | 40 40 . . 63 63 55 62 . . 39 39 39 . . 81 179 131 203 203 256 Shots Fired 458 | 24 10 . . 11 2 8 4 . . 1 1 4 . . 4 35 101 37 29 187 Gun 335 | 24 10 . . . . 8 2 . . . . . . . . 6 52 37 29 167 Cannon 103 | . . . . 11 2 . . . . . . . . . 4 29 49 . . 8 Launcher 13 | . . . . . . . 2 . . 1 1 2 . . . . . . . 7 Special 7 | . . . . . . . . . . . . 2 . . . . . . . 5 Kinetic 178 | 24 10 . . . . . 2 . . . . . . . . . 43 21 14 64 Thermal 208 | . . . . . . . . . . . . . . . . 14 58 16 15 105 Explosive 6 | . . . . . . . 2 . . 1 1 2 . . . . . . . . Electromagnetic 59 | . . . . 11 2 8 . . . . . . . . 4 21 . . . 13 Robot Hit Streak 29 | 17 21 . . 13 . 4 8 . . . . 2 . . 1 17 13 19 14 29 Robot Miss Streak 5 | . 1 . . . 2 1 . . . . . 1 . . 1 3 5 2 1 2 Penetration Max 1 | . . . . . . . . . . . . . . . . . 1 1 1 1 Secondary Targets 6 | . . . . . . . . . . . . . . . . . 1 . . 5 Max Gunslinging Chain 1 | . . . . . . . . . . . . . . . . . 1 . . 1 Shots Hit Robots 352 | 17 6 . 13 11 . 6 4 . . . 4 3 1 . 2 21 63 29 26 146 Core Hits 143 | 6 3 . 5 6 . 2 6 . . . 2 8 . . . 8 25 8 5 59 Critical Kills 7 | . . . . . . . . . . . . . . . . 2 1 1 . 3 Critical Parts Destroyed 12 | . . . . . . . . . . . 2 . . . . . 2 2 1 5 Critical Strikes 26 | . . . . . . 1 . . . . 2 . . . . 2 3 4 4 10 Burn 3 | . . . . . . . . . . . . . . . . . . 1 1 1 Meltdown 3 | . . . . . . . . . . . . . . . . 2 1 . . . Destroy 17 | . . . . . . . . . . . . . . . . . 2 3 3 9 Corrupt 1 | . . . . . . 1 . . . . . . . . . . . . . . Smash 2 | . . . . . . . . . . . 2 . . . . . . . . . Melee Attacks 41 | . . . 18 . . . . . . . 7 3 5 . . 8 . . . . Impact 23 | . . . . . . . . . . . 7 3 5 . . 8 . . . . Slashing 18 | . . . 18 . . . . . . . . . . . . . . . . . Piercing . | . . . . . . . . . . . . . . . . . . . . . Sneak Attacks 7 | . . . 2 . . . . . . . 3 1 1 . . . . . . . Combat Hostiles . | . . . . . . . . . . . . . . . . . . . . . Follow-up Attacks . | . . . . . . . . . . . . . . . . . . . . . Damage Inflicted 10777 | 185 49 . 338 271 . 103 353 . . . 355 507 66 . 118 643 1957 821 742 4269 Guns 6819 | 185 49 . . . . 103 31 . . . . . . . . 62 1089 821 742 3737 Cannons 1997 | . . . . 271 . . . . . . . . . . 118 566 868 . . 174 Explosions 1062 | . . . . . . . 322 . . . . 393 . . . . . . . 347 Melee 873 | . . . 338 . . . . . . . 355 114 66 . . . . . . . Ramming 26 | . . . . . . . . . . . . . . . . 15 . . . 11 Kinetic 3391 | 185 49 . . . . . 31 . . . . . . . . . 901 493 405 1327 Thermal 4536 | . . . . . . . . . . . . . . . . 302 1056 328 337 2513 Explosive 715 | . . . . . . . 322 . . . . 393 . . . . . . . . Electromagnetic 1236 | . . . . 271 . 103 . . . . . . . . 118 326 . . . 418 Impact 535 | . . . . . . . . . . . 355 114 66 . . . . . . . Slashing 338 | . . . 338 . . . . . . . . . . . . . . . . . Piercing . | . . . . . . . . . . . . . . . . . . . . . Highest Corruption 13 | . . . . . . . . . . . . 2 2 2 2 . 5 5 5 13 Average Corruption 6 | . . . . . . . . . . . . 1 2 2 2 . 4 5 5 10 Corruption Purged . | . . . . . . . . . . . . . . . . . . . . . Corruption Blocked . | . . . . . . . . . . . . . . . . . . . . . Effects 73 | . . . . . . . . . . . . 2 5 1 4 . 11 5 3 42 Message Errors 16 | . . . . . . . . . . . . . 2 . 1 . 6 1 . 6 Matter Fused 10 | . . . . . . . . . . . . . 2 . 1 . 1 1 1 4 Heat Flow Errors 6 | . . . . . . . . . . . . 1 . 1 . . . . . 4 Energy Discharges 11 | . . . . . . . . . . . . . . . 2 . 1 1 . 7 Parts Rejected 3 | . . . . . . . . . . . . . . . . . . . . 3 Parts Fused 1 | . . . . . . . . . . . . . . . . . . . . 1 Data Loss (minor) 14 | . . . . . . . . . . . . 1 1 . . . 2 2 . 8 Data Loss (major) 3 | . . . . . . . . . . . . . . . . . . . 1 2 Misfires 5 | . . . . . . . . . . . . . . . . . 1 . . 4 Alerts 1 | . . . . . . . . . . . . . . . . . . . . 1 Misdirections 2 | . . . . . . . . . . . . . . . . . . . . 2 Weapon Failures 1 | . . . . . . . . . . . . . . . . . . . 1 . Overload Shots . | . . . . . . . . . . . . . . . . . . . . . Overflow Damage 457 | . . . 17 29 . . . . . . 197 37 22 . 76 . 29 . . 50 Projectiles 180 | . . . . 29 . . . . . . . . . . 76 . 29 . . 46 Explosions 4 | . . . . . . . . . . . . . . . . . . . . 4 Melee 273 | . . . 17 . . . . . . . 197 37 22 . . . . . . . Knockbacks 4 | . . . . . . . . . . . 1 . . . . . . . . 3 Impact 1 | . . . . . . . . . . . 1 . . . . . . . . . Kinetic 3 | . . . . . . . . . . . . . . . . . . . . 3 Secondary . | . . . . . . . . . . . . . . . . . . . . . Self-Inflicted Damage 45 | . . . . . . . . . . . 23 21 . . . . . . . 1 Shots 2 | . . . . . . . . . . . 1 1 . . . . . . . . Rammed 1 | . . . . . . . . . . . . . . . . . . . . 1 Targets Rammed 6 | . . . . . . . . . . . . . . . . 2 . . . 4 Kicked 5 | . . . . . . . . . . . . . . . . 2 . . . 3 Crushed . | . . . . . . . . . . . . . . . . . . . . . Highest Temperature 376 | . . . 15 84 32 73 202 62 222 10 . 206 . 270 176 270 376 . . 280 Average Temperature 86 | . . . 7 32 15 28 91 32 113 5 . 60 . 137 89 121 104 . . 65 Received Heat Transfer 1389 | . . . 51 9 . 24 63 . . 6 . 18 . . . 144 271 4 63 736 Effects 5 | . . . . . . . . . . . . . . . . 1 4 . . . Shutdowns 2 | . . . . . . . . . . . . . . . . . 2 . . . Energy Bleed 2 | . . . . . . . . . . . . . . . . . 2 . . . Interference 1 | . . . . . . . . . . . . . . . . 1 . . . . Siege Activations . | . . . . . . . . . . . . . . . . . . . . . Martial Activations . | . . . . . . . . . . . . . . . . . . . . . Shielding Activations . | . . . . . . . . . . . . . . . . . . . . . Robots Disrupted 1 | . . . . . . . . . . . . . . . . 1 . . . . Combat Hostiles 1 | . . . . . . . . . . . . . . . . 1 . . . . Robots Corrupted 3 | . . . . . . . . . . . 1 . 1 . . 1 . . . . Combat Hostiles 1 | . . . . . . . . . . . . . . . . 1 . . . . Parts Fried 14 | . . . . 3 . . . . . . 3 . 2 . 1 2 2 . . 1 Impact Corruptions 7 | . . . . . . . . . . . 3 1 3 . . . . . . . Robots Melted 3 | . . . . . . . . . . . . . . . . 2 1 . . . Combat Hostiles 2 | . . . . . . . . . . . . . . . . 1 1 . . . Parts Melted 20 | . . . . . . . . . . . . . . . . 1 7 . . 12 Heat Transferred 6283 | . . . . . . . . . . . . . . . . 450 1541 518 518 3256 Parts Sabotaged . | . . . . . . . . . . . . . . . . . . . . . Parts Stolen . | . . . . . . . . . . . . . . . . . . . . . Parts Stripped . | . . . . . . . . . . . . . . . . . . . . . Power Chain Reactions 1 | . . . . . . . . . . . . . . . . . . . . 1 Alert | -11 -10 -10 -9 -8 -7 -7 -7 -7 -6 -6 -5 -5 -5 -5 -4 -4 -4 -4 -4 -3 ------- Run | Yrd Mat Min Mat Mat Fac Low Low Dat Pro Fac Fac Upp Upp Zhi Pro Fac Ext Cet Arc Res Maximum Alert Level 1 | . . . . . . . . . . . . . . . . 1 1 1 . . Low Security (%) 82 | 100 100 100 100 100 100 . . . . 100 100 . . . . 67 52 67 100 100 Level 1 17 | . . . . . . . . . . . . . . . . 32 47 32 . . Level 2 . | . . . . . . . . . . . . . . . . . . . . . Level 3 . | . . . . . . . . . . . . . . . . . . . . . Level 4 . | . . . . . . . . . . . . . . . . . . . . . Level 5 . | . . . . . . . . . . . . . . . . . . . . . High Security . | . . . . . . . . . . . . . . . . . . . . . Max Security . | . . . . . . . . . . . . . . . . . . . . . Peak Influence 398 | 10 60 16 87 147 85 . . . . 28 145 . . . . 331 398 268 133 136 Initial 300 | . . 16 . 31 50 . . . . . 3 . . . . 300 9 108 80 35 Average 100 | 1 13 . 38 82 63 . . . . 14 107 . . . . 155 197 188 108 31 Influence Increases 3804 | 15 82 . 177 168 51 65 90 . . 29 202 215 . . 5 513 1025 270 113 784 Destroy 0b10 Robot/C 1660 | . 60 . 60 80 . 40 80 . . . . 100 . . . 80 580 160 80 340 Destroy 0b10 Robot/NC 160 | 15 . . 10 10 . . . . . . 20 . . . 5 10 30 10 . 50 Destroy Leader 176 | . 10 . 12 12 . 10 10 . . . . 10 . . . 10 60 . . 42 Allied During Kill 289 | . . . . . . . . . . . . . . . . . 251 33 5 . Successful Hack 101 | . 12 . 4 6 6 . . . . 1 26 . . . . 10 20 . . 16 Disable Machine 126 | . . . . . . . . . . 9 9 . . . . 45 18 9 18 18 Destroy Structure 272 | . . . 1 . . . . . . 19 42 . . . . 58 66 58 10 18 Advance Influence 300 | . . . . . . . . . . . . . . . . 300 . . . . Partial Spotted 135 | . . . 45 30 45 . . . . . 15 . . . . . . . . . Lose Combat Pursuer 585 | . . . 45 30 . 15 . . . . 90 105 . . . . . . . 300 Influence Decreases 3739 | 15 32 50 90 126 129 71 113 22 . 20 76 252 98 . 5 490 824 256 238 832 Entered New Map 689 | . . 34 . 56 79 23 13 22 . . 6 62 28 . . . 14 116 158 78 Time Decay 2151 | 15 32 16 60 70 50 38 80 . . 20 70 130 70 . 5 380 529 110 50 426 Search Patrol Dispatched 100 | . . . . . . . . . . . . . . . . 100 . . . . Lost Part 513 | . . . 30 . . 10 20 . . . . 60 . . . 10 50 10 10 313 Lost Ally 286 | . . . . . . . . . . . . . . . . . 231 20 20 15 Squads Dispatched 19 | . . . 2 1 1 . . . . . 2 . . . . 3 3 . . 7 Investigation 5 | . . . . . 1 . . . . . . . . . . 2 1 . . 1 Extermination 4 | . . . . . . . . . . . . . . . . 1 . . . 3 Reinforcement 10 | . . . 2 1 . . . . . . 2 . . . . . 2 . . 3 Assault . | . . . . . . . . . . . . . . . . . . . . . Garrison . | . . . . . . . . . . . . . . . . . . . . . Intercept . | . . . . . . . . . . . . . . . . . . . . . Searches Triggered 1 | . . . . . . . . . . . . . . . . 1 . . . . Data Miner Redirects 1 | . . . . . . . . . . . . . . . . 1 . . . . Construction Impeded 2 | . . . . . . . . . . . . . . . . . 1 . . 1 Haulers Reinforced . | . . . . . . . . . . . . . . . . . . . . . Active Scanning Responses . | . . . . . . . . . . . . . . . . . . . . . Cargo Convoy Interrupts . | . . . . . . . . . . . . . . . . . . . . . Stealth | -11 -10 -10 -9 -8 -7 -7 -7 -7 -6 -6 -5 -5 -5 -5 -4 -4 -4 -4 -4 -3 --------- Run | Yrd Mat Min Mat Mat Fac Low Low Dat Pro Fac Fac Upp Upp Zhi Pro Fac Ext Cet Arc Res Distress Signals 10 | . 1 . 2 . . . . . . . . . . . . . 3 2 . 2 Communications Jammed . | . . . . . . . . . . . . . . . . . . . . . Distress Signals . | . . . . . . . . . . . . . . . . . . . . . Times Spotted 184 | . 6 . 18 13 2 5 7 . . 2 5 12 . . 1 9 27 10 6 61 Peak Tracking Total 12 | . 3 . 11 5 1 3 4 . . 2 6 7 . . 1 4 5 5 2 12 Tactical Retreats 21 | . . . 1 1 . 1 1 . . . 2 2 . . . . . . . 13 Traps | -11 -10 -10 -9 -8 -7 -7 -7 -7 -6 -6 -5 -5 -5 -5 -4 -4 -4 -4 -4 -3 ------- Run | Yrd Mat Min Mat Mat Fac Low Low Dat Pro Fac Fac Upp Upp Zhi Pro Fac Ext Cet Arc Res Traps Triggered 10 | . 1 . 1 . . . . . . . . . . . . 1 1 . . 6 Indirectly 3 | . . . . . . . . . . . . . . . . . . . . 3 Trap Hack Attempts . | . . . . . . . . . . . . . . . . . . . . . Triggered . | . . . . . . . . . . . . . . . . . . . . . Disarmed . | . . . . . . . . . . . . . . . . . . . . . Reprogrammed . | . . . . . . . . . . . . . . . . . . . . . Reused . | . . . . . . . . . . . . . . . . . . . . . Traps Extracted . | . . . . . . . . . . . . . . . . . . . . . Installed . | . . . . . . . . . . . . . . . . . . . . . Triggered . | . . . . . . . . . . . . . . . . . . . . . Machines | -11 -10 -10 -9 -8 -7 -7 -7 -7 -6 -6 -5 -5 -5 -5 -4 -4 -4 -4 -4 -3 ---------- Run | Yrd Mat Min Mat Mat Fac Low Low Dat Pro Fac Fac Upp Upp Zhi Pro Fac Ext Cet Arc Res Machines Disabled 17 | . . . . . . 2 . . . 1 1 . . . . 5 2 2 2 2 Max in Single Turn 2 | . . . . . . 1 . . . 1 1 . . . . 2 . . 1 1 Energy Cycler 2 | . . . . . . . . . . . . . . . . . 2 . . . Machines Repaired . | . . . . . . . . . . . . . . . . . . . . . Machines Dismantled . | . . . . . . . . . . . . . . . . . . . . . Machines Sabotaged . | . . . . . . . . . . . . . . . . . . . . . Overloaded Fab Kills . | . . . . . . . . . . . . . . . . . . . . . Hacking | -11 -10 -10 -9 -8 -7 -7 -7 -7 -6 -6 -5 -5 -5 -5 -4 -4 -4 -4 -4 -3 --------- Run | Yrd Mat Min Mat Mat Fac Low Low Dat Pro Fac Fac Upp Upp Zhi Pro Fac Ext Cet Arc Res Machines Accessed 46 | . 2 1 3 5 2 . . 3 . 1 3 1 . 3 . 5 9 1 . 7 Terminals 28 | . 2 . 3 4 2 . . . . . 3 . . . . 2 8 1 . 3 Fabricators 2 | . . . . . . . . . . . . . . . . 1 . . . 1 Repair Stations 3 | . . . . 1 . . . . . . . . . . . 2 . . . . Recycling Units 2 | . . . . . . . . . . . . . . . . . 1 . . 1 Scanalyzers 3 | . . . . . . . . . . 1 . . . . . . . . . 2 Garrison Access . | . . . . . . . . . . . . . . . . . . . . . Total Hacks 143 | . 9 1 6 13 6 . . 23 . 4 13 1 . 13 . 12 26 1 . 15 Successful 75 | . 4 1 3 7 1 . . 23 . 4 4 1 . 13 . 5 7 1 . 1 Failed 68 | . 5 . 3 6 5 . . . . . 9 . . . . 7 19 . . 14 Catastrophic 12 | . . . . 2 1 . . . . . 1 . . . . 3 3 . . 2 Database Lockouts . | . . . . . . . . . . . . . . . . . . . . . Manual 57 | . 8 . 4 6 1 1 . . . . 13 . . . . 3 15 1 . 5 Terminals 78 | . 9 . 6 11 6 . . . . . 13 . . . . 3 23 1 . 6 Fabricators 8 | . . . . . . . . . . . . . . . . 4 . . . 4 Repair Stations 7 | . . . . 2 . . . . . . . . . . . 5 . . . . Recycling Units 5 | . . . . . . . . . . . . . . . . . 3 . . 2 Scanalyzers 7 | . . . . . . . . . . 4 . . . . . . . . . 3 Garrison Access . | . . . . . . . . . . . . . . . . . . . . . Terminal Hacks 61 | . 4 1 3 5 1 . . 23 . . 3 1 . 13 . . 6 1 . . Record 12 | . . . . 1 . . . 6 . . . . . 5 . . . . . . Part Schematic 9 | . . . . . . . . 9 . . . . . . . . . . . . Robot Schematic 6 | . . . . . 1 . . 5 . . . . . . . . . . . . Robot Analysis 5 | . . . 1 . . . . . . . . . . 4 . . . . . . Prototype ID Bank 7 | . . . . . . . . 3 . . . . . 4 . . . . . . Open Door 3 | . . 1 . . . . . . . . . 1 . . . . . 1 . . Branch Access Points 2 | . 1 . . . . . . . . . 1 . . . . . . . . . Alert Level 6 | . 1 . 1 . . . . . . . 1 . . . . . 3 . . . Locate Traps 2 | . . . . 1 . . . . . . . . . . . . 1 . . . Recall Reinforcements 1 | . . . . 1 . . . . . . . . . . . . . . . . Zone Layout 8 | . 2 . 1 2 . . . . . . 1 . . . . . 2 . . . Fabricator Hacks 3 | . . . . . . . . . . . . . . . . 2 . . . 1 Load Schematic 1 | . . . . . . . . . . . . . . . . 1 . . . . Build 2 | . . . . . . . . . . . . . . . . 1 . . . 1 Repair Station Hacks 5 | . . . . 2 . . . . . . . . . . . 3 . . . . Scan Component 3 | . . . . 1 . . . . . . . . . . . 2 . . . . Repair 2 | . . . . 1 . . . . . . . . . . . 1 . . . . Recycling Unit Hacks 1 | . . . . . . . . . . . . . . . . . 1 . . . Report Inventory 1 | . . . . . . . . . . . . . . . . . 1 . . . Scanalyzer 4 | . . . . . . . . . . 4 . . . . . . . . . . Retrieve Study 4 | . . . . . . . . . . 4 . . . . . . . . . . Garrison Access Hacks . | . . . . . . . . . . . . . . . . . . . . . Unauthorized Hacks 1 | . . . . . . . . . . . 1 . . . . . . . . . Terminals 1 | . . . . . . . . . . . 1 . . . . . . . . . Assimilate 1 | . . . . . . . . . . . 1 . . . . . . . . . Fabricators . | . . . . . . . . . . . . . . . . . . . . . Repair Stations . | . . . . . . . . . . . . . . . . . . . . . Recycling Units . | . . . . . . . . . . . . . . . . . . . . . Scanalyzers . | . . . . . . . . . . . . . . . . . . . . . Garrison Access . | . . . . . . . . . . . . . . . . . . . . . Data Cores Recovered 3 | . . . . 1 . . . . . . . . . . . . 2 . . . Used . | . . . . . . . . . . . . . . . . . . . . . Hacking Detections 34 | . 2 . 3 4 2 . . . . . 3 . . . . 5 8 . . 7 Full Trace Events 5 | . . . . . 1 . . . . . . . . . . 2 1 . . 1 Feedback Events . | . . . . . . . . . . . . . . . . . . . . . Feedback Blocked . | . . . . . . . . . . . . . . . . . . . . . Robot Schematics Acquired 6 | . . . . . 1 . . 5 . . . . . . . . . . . . Robots Built 1 | . . . . . . . . . . . . . . . . . . . . 1 Authchips . | . . . . . . . . . . . . . . . . . . . . . Time 93 | . . . . . . . . . . . . . . . . . . . . 93 Total Robot Build Rating 7 | . . . . . . . . . . . . . . . . . . . . 7 Part Schematics Acquired 9 | . . . . . . . . 9 . . . . . . . . . . . . Parts Built 1 | . . . . . . . . . . . . . . . . 1 . . . . Authchips . | . . . . . . . . . . . . . . . . . . . . . Time 106 | . . . . . . . . . . . . . . . . 106 . . . . Total Part Build Rating 6 | . . . . . . . . . . . . . . . . 6 . . . . Part Studies Acquired 4 | . . . . . . . . . . 4 . . . . . . . . . . Parts Repaired 2 | . . . . 1 . . . . . . . . . . . 1 . . . . Time 45 | . . . . 26 . . . . . . . . . . . 19 . . . . Parts Recycled . | . . . . . . . . . . . . . . . . . . . . . Recycled Matter . | . . . . . . . . . . . . . . . . . . . . . Retrieved Matter . | . . . . . . . . . . . . . . . . . . . . . Retrieved Components . | . . . . . . . . . . . . . . . . . . . . . Parts Scanalyzed . | . . . . . . . . . . . . . . . . . . . . . Part Schematics Acquired . | . . . . . . . . . . . . . . . . . . . . . Parts Damaged . | . . . . . . . . . . . . . . . . . . . . . Bothacking | -11 -10 -10 -9 -8 -7 -7 -7 -7 -6 -6 -5 -5 -5 -5 -4 -4 -4 -4 -4 -3 ------------ Run | Yrd Mat Min Mat Mat Fac Low Low Dat Pro Fac Fac Upp Upp Zhi Pro Fac Ext Cet Arc Res Used RIF Installer . | . . . . . . . . . . . . . . . . . . . . . Robots Hacked . | . . . . . . . . . . . . . . . . . . . . . Non-combat . | . . . . . . . . . . . . . . . . . . . . . Combat . | . . . . . . . . . . . . . . . . . . . . . Robot Hacks Applied . | . . . . . . . . . . . . . . . . . . . . . Relay Couplers Released . | . . . . . . . . . . . . . . . . . . . . . Fabnet Peak Effective % . | . . . . . . . . . . . . . . . . . . . . . Robots Rewired 15 | . . . . . . . . . . . . . . . . . 15 . . . Allies Hacked . | . . . . . . . . . . . . . . . . . . . . . Hacks Repelled . | . . . . . . . . . . . . . . . . . . . . . Allies | -11 -10 -10 -9 -8 -7 -7 -7 -7 -6 -6 -5 -5 -5 -5 -4 -4 -4 -4 -4 -3 -------- Run | Yrd Mat Min Mat Mat Fac Low Low Dat Pro Fac Fac Upp Upp Zhi Pro Fac Ext Cet Arc Res Total Allies 25 | . . . . . . . . . . . . . . . . . 24 . . 1 Largest Group 14 | . . . . . . . . . . . . . . . . . 14 6 3 1 Highest-Rated Group 654 | . . . . . . . . . . . . . . . . . 654 342 233 93 Highest-Rated Ally 159 | . . . . . . . . . . . . . . . . . 159 152 136 93 Total Orders . | . . . . . . . . . . . . . . . . . . . . . Ally Attacks 205 | . . . . . . . . . . . . . . . . . 144 46 13 2 Total Damage 6221 | . . . . . . . . . . . . . . . . . 3933 1308 408 572 Kills 43 | . . . . . . . . . . . . . . . . . 27 11 4 1 Allies Corrupted . | . . . . . . . . . . . . . . . . . . . . . Allies Melted . | . . . . . . . . . . . . . . . . . . . . . Intel | -11 -10 -10 -9 -8 -7 -7 -7 -7 -6 -6 -5 -5 -5 -5 -4 -4 -4 -4 -4 -3 ------- Run | Yrd Mat Min Mat Mat Fac Low Low Dat Pro Fac Fac Upp Upp Zhi Pro Fac Ext Cet Arc Res Active Infowar (turns) 4621 | 14 173 426 49 . 99 118 164 20 75 53 142 268 272 95 231 761 1160 7 . 494 Sensors 3430 | . . . . . . . . . . 41 142 268 272 95 231 761 1160 7 . 453 Terrain 1073 | . . . . . . . . . . . 141 268 272 95 231 66 . . . . Seismic 1153 | 14 173 426 49 . 28 118 164 20 75 45 . . . . . . . . . 41 Machine Analysis 2716 | . . . . . 99 118 164 20 75 53 142 268 272 95 231 761 418 . . . Robot Analysis Total 5 | . . . 1 . . . . . . . . . . 4 . . . . . . Derelict Logs Recovered 5 | . . . . . . 1 1 . 2 . . . . . 1 . . . . . Drone Launches . | . . . . . . . . . . . . . . . . . . . . . Drone Recoveries . | . . . . . . . . . . . . . . . . . . . . . Exploration | -11 -10 -10 -9 -8 -7 -7 -7 -7 -6 -6 -5 -5 -5 -5 -4 -4 -4 -4 -4 -3 ------------- Run | Yrd Mat Min Mat Mat Fac Low Low Dat Pro Fac Fac Upp Upp Zhi Pro Fac Ext Cet Arc Res Turns Passed 6125 | 112 173 426 127 155 117 118 164 20 75 53 142 268 272 95 231 761 1160 234 115 1307 Spaces Moved 6274 | 56 111 161 186 273 405 360 415 75 269 150 373 504 266 135 167 482 603 196 64 1023 Core 73 | 4 . . . . . . . . . . . . . . . . 1 . . 68 Treads . | . . . . . . . . . . . . . . . . . . . . . Legs 1443 | . . . . . . . . . . . . . . 51 167 482 466 . . 277 Wheels 451 | 52 111 161 . . . . . . . . . . . . . . . . . 127 Hover 604 | . . . . . . . . . . . . . . . . . 136 196 64 208 Flight 3703 | . . . 186 273 405 360 415 75 269 150 373 504 266 84 . . . . . 343 Fastest Speed 22 | 50 100 100 31 28 26 26 26 26 26 26 26 22 26 26 120 120 40 41 97 40 Average Speed 59 | 96 100 100 31 30 26 26 26 26 26 26 26 24 26 61 120 120 104 52 100 85 Slowest Speed 950 | 100 100 100 34 31 26 26 26 26 26 26 26 27 26 120 120 120 950 97 102 270 Overloaded Moves . | . . . . . . . . . . . . . . . . . . . . . Propulsion Burnouts . | . . . . . . . . . . . . . . . . . . . . . Robots Hopped 6 | . . . 1 . 1 . . . . . . . . . . . . . . 4 Potential Cave-ins 7 | . . . . . . . . . . . . . . . . . 7 . . . Cave-ins Triggered 2 | . . . . . . . . . . . . . . . . . 2 . . . Teleports 1 | . . . . . . . . . . . . . . . . . . . . 1 Exploration Rate (%) 40 | 3 26 39 30 26 11 53 70 68 48 7 14 59 43 60 39 16 68 71 77 30 Regions Visited 20 Branch Regions 12 Pre-discovered Areas 6 | . . . . . . . 1 1 . . . . . 3 1 . . . . . Known Exits Taken 9 | . 1 . . . . . . . . 1 1 1 1 1 1 1 . . 1 . Unknown Exits Taken 11 | 1 . 1 1 1 1 1 1 1 1 . . . . . . . 1 1 . . Scrap Searched 10 | . . 1 . . . 1 6 . . . . . . . 2 . . . . . Spaces Dug 27 | . . . 1 . . . . . . . 3 2 4 . . 10 5 . . 2 Terrain Destroyed 180 | . . . 1 . . . 32 . . 21 20 36 4 . . 26 27 2 3 8 Melee 18 | . . . 1 . . . . . . . 3 2 4 . . 8 . . . . Projectile 42 | . . . . . . . . . . . . . . . . 5 27 2 3 5 AOE 120 | . . . . . . . 32 . . 21 17 34 . . . 13 . . . 3 Terrain Rammed . | . . . . . . . . . . . . . . . . . . . . . Walls Destroyed . | . . . . . . . . . . . . . . . . . . . . . Machines Disabled . | . . . . . . . . . . . . . . . . . . . . . Actions | -11 -10 -10 -9 -8 -7 -7 -7 -7 -6 -6 -5 -5 -5 -5 -4 -4 -4 -4 -4 -3 --------- Run | Yrd Mat Min Mat Mat Fac Low Low Dat Pro Fac Fac Upp Upp Zhi Pro Fac Ext Cet Arc Res Total 8146 | 88 164 426 217 333 412 375 467 74 273 163 402 639 458 146 193 612 1033 294 91 1286 Wait 1236 | 11 45 263 4 33 . . 47 . 5 5 11 113 188 . 20 86 249 64 9 83 Move 6241 | 55 110 160 183 272 402 359 414 74 268 149 372 503 265 134 166 481 601 195 63 1015 Hop 6 | . . . 1 . 1 . . . . . . . . . . . . . . 4 Pick Up 29 | 3 4 1 . 4 2 1 . . . 1 2 1 . 1 1 1 1 . 1 5 Fast Attach 96 | 7 . 1 3 3 2 3 . . . 2 3 2 . 6 1 6 17 4 . 36 Attach 38 | . . . 5 . 1 2 3 . . 1 2 6 . 1 . 1 1 . . 15 Detach 19 | . . . 1 . . 1 1 . . 3 1 4 . . 1 . 1 1 . 5 Swap 26 | . . . . 5 . . . . . . . 1 . . . 2 9 4 1 4 Drop 60 | . . 1 2 5 2 1 . . . 1 3 2 . 4 . 5 18 5 2 9 Fire 252 | 12 5 . . 11 2 8 2 . . 1 1 4 . . 4 20 58 21 15 88 Melee 41 | . . . 18 . . . . . . . 7 3 5 . . 8 . . . . Ram 1 | . . . . . . . . . . . . . . . . . . . . 1 Kick 5 | . . . . . . . . . . . . . . . . 2 . . . 3 Crush . | . . . . . . . . . . . . . . . . . . . . . Escape Stasis 19 | . . . . . . . . . . . . . . . . . 1 . . 18 Rewire 77 | . . . . . . . . . . . . . . . . . 77 . . . Trap . | . . . . . . . . . . . . . . . . . . . . . Miscellaneous . | . . . . . . . . . . . . . . . . . . . . . Route ------- -11/Scrapyard -10/Materials -10/Mines -9/Materials -8/Materials -7/Factory -7/Lower Caves -7/Lower Caves -7/Data Miner -6/Proximity Caves -6/Factory -5/Factory (discovered 2 exits: *Upp x2) -5/Upper Caves -5/Upper Caves -5/Zhirov -4/Proximity Caves -4/Factory (discovered 4 exits: *Res / *Upp / *Ext x2) -4/Extension (discovered 2 exits: *Res / *Cet) -4/Cetus (discovered 2 exits: *Res / [*Arc]) -4/Archives (discovered 3 exits: *Res / [*Hub x2]) -3/Research History --------- Turn | Location | Event 25 | -11/Scrapyard | Discovered new exit (range 16) 113 | -11/Scrapyard | Entered Materials 142 | -10/Materials | Identified exit to Mines 286 | -10/Materials | Entered Mines 306 | -10/Mines | Assembled infested the area 317 | -10/Mines | Found the Drone Emporium 328 | -10/Mines | Build established: Mutant 697 | -10/Mines | Discovered new exit (range 14) 712 | -10/Mines | Entered Materials 712 | -9/Materials | Evolved 2 slots: Propulsion x2 827 | -9/Materials | Discovered new exit (range 4) 839 | -9/Materials | Entered another Materials area 839 | -8/Materials | Evolved 2 slots: Utility x2 876 | -8/Materials | Repaired Flight Unit 990 | -8/Materials | Discovered new exit (range 8) 994 | -8/Materials | Entered Factory 994 | -7/Factory | Evolved 2 slots: Power x1, Propulsion x1 1032 | -7/Factory | Discovered new exit (range 5) 1111 | -7/Factory | Entered Lower Caves 1116 | -7/Lower Caves | Learned Factory stockpile data 1123 | -7/Lower Caves | Build established: Sprinter 1142 | -7/Lower Caves | Encountered a Warlord checkpoint 1169 | -7/Lower Caves | Spotted B-75 Beast 1187 | -7/Lower Caves | Acquired the password to a Derelict Tinkerer's latest research 1194 | -7/Lower Caves | Found Prototype Special Weapon 1194 | -7/Lower Caves | Identified Molecular Deconstructor 1228 | -7/Lower Caves | Discovered new exit (range 7) 1229 | -7/Lower Caves | Attracted the attention of an 0b10 checkpoint 1229 | -7/Lower Caves | Entered another Lower Caves area 1345 | -7/Lower Caves | Encountered a Warlord checkpoint 1381 | -7/Lower Caves | Entered a destroyed Warlord outpost 1391 | -7/Lower Caves | Discovered new exit (range 5) 1393 | -7/Lower Caves | Entered Data Miner 1393 | -7/Data Miner | Discovered new exit (range 6) 1398 | -7/Data Miner | Met Data Miner 1403 | -7/Data Miner | Learned location of Section 7 (-3) 1403 | -7/Data Miner | Acquired the access code to Warlord's prototype stash 1407 | -7/Data Miner | Received God Mode back door access code from Data Miner 1413 | -7/Data Miner | Entered Proximity Caves 1443 | -6/Proximity Caves | Learned location of 1 exit from Factory 1484 | -6/Proximity Caves | Build established: Scavenger-Sprinter 1485 | -6/Proximity Caves | Discovered new exit (range 11) 1488 | -6/Proximity Caves | Entered Factory 1488 | -6/Factory | Evolved 2 slots: Propulsion x1, Utility x1 1489 | -6/Factory | Identified exit to Factory 1541 | -6/Factory | Entered another Factory area 1541 | -5/Factory | Evolved 2 slots: Utility x2 1550 | -5/Factory | Identified exit to Upper Caves 1683 | -5/Factory | Entered Upper Caves 1803 | -5/Upper Caves | Attracted the attention of an 0b10 checkpoint 1829 | -5/Upper Caves | Lost 5 parts (1p3n1w) 1945 | -5/Upper Caves | Discovered new exit (range 10) 1951 | -5/Upper Caves | Identified exit to Upper Caves 1951 | -5/Upper Caves | Entered another Upper Caves area 2085 | -5/Upper Caves | Build established: Scout 2188 | -5/Upper Caves | Discovered new exit (range 5) 2223 | -5/Upper Caves | Identified exit to Zhirov 2223 | -5/Upper Caves | Entered Zhirov 2223 | -5/Zhirov | Discovered new exit (range 3) 2228 | -5/Zhirov | Met Zhirov 2233 | -5/Zhirov | Learned location of Quarantine (-3) 2233 | -5/Zhirov | Learned location of Testing (-2) 2233 | -5/Zhirov | Learned location of Command (-1) 2235 | -5/Zhirov | Zhirov requested help retrieving the SGEMP Prototype 2239 | -5/Zhirov | Found Alien Artifact 2239 | -5/Zhirov | Identified Integrated Reactor 2239 | -5/Zhirov | Installed Integrated Reactor, increased core energy generation (+10) 2243 | -5/Zhirov | Found Alien Artifact 2317 | -5/Zhirov | Identified exit to Proximity Caves 2318 | -5/Zhirov | Entered Proximity Caves 2321 | -4/Proximity Caves | Spotter reported a threat 2331 | -4/Proximity Caves | Spotter reported a threat 2520 | -4/Proximity Caves | Discovered new exit (range 15) 2540 | -4/Proximity Caves | Identified exit to Factory 2549 | -4/Proximity Caves | Entered Factory 2549 | -4/Factory | Evolved 2 slots: Weapon x2 2550 | -4/Factory | Identified exit to Extension 2697 | -4/Factory | Build established: Skirmisher 2758 | -4/Factory | Incoming investigation squad redirected 2799 | -4/Factory | Search patrols dispatched 2838 | -4/Factory | Fabricated Nuclear Pulse Array? 2855 | -4/Factory | Repaired Lgt. Nuclear Core+ 3053 | -4/Factory | Discovered new exit (range 10) 3064 | -4/Factory | Identified exit to Upper Caves 3102 | -4/Factory | Build established: Hacker-Assassin 3238 | -4/Factory | Discovered new exit (range 14) 3253 | -4/Factory | Identified exit to Research 3290 | -4/Factory | Discovered exit to Extension (range 16) 3310 | -4/Factory | Entered Extension 3351 | -4/Extension | Rescued a captive Derelict 3356 | -4/Extension | Rescued a captive Derelict 3440 | -4/Extension | Rescued A7 3545 | -4/Extension | Rescued a captive Derelict 3549 | -4/Extension | Rescued a captive Derelict 3691 | -4/Extension | Rescued a captive Derelict 3695 | -4/Extension | Rescued a captive Derelict 3706 | -4/Extension | Build established: Scavenger-Assassin 3822 | -4/Extension | Crushed by falling debris 3824 | -4/Extension | Crushed by falling debris 3831 | -4/Extension | Rescued a captive Derelict 3836 | -4/Extension | Rescued a captive Derelict 3861 | -4/Extension | Lost 4 parts (3u1w) 3951 | -4/Extension | Lost 4 allies 4030 | -4/Extension | Energy Cycler disabled 4123 | -4/Extension | Lost 3 allies 4335 | -4/Extension | Discovered exit to Research (range 10) 4336 | -4/Extension | Discovered new exit (range 6) 4470 | -4/Extension | Entered Cetus 4470 | -4/Cetus | Accompanied by 6 allies (A7) 4475 | -4/Cetus | Acquired a Cetus Manufacturing Module code from A7 4477 | -4/Cetus | Spotted Cetus Guard 4477 | -4/Cetus | Spotted Cetus Guard 4484 | -4/Cetus | Spotted Cetus Guard 4492 | -4/Cetus | Allies destroyed Cetus Guard 4498 | -4/Cetus | Spotted Cetus Guard 4499 | -4/Cetus | Allies destroyed Cetus Guard 4499 | -4/Cetus | Destroyed Cetus Guard 4507 | -4/Cetus | Allies destroyed Cetus Guard 4531 | -4/Cetus | Cetus Manufacturing Module disabled 4540 | -4/Cetus | Failed to start Cetus Manufacturing Module 4561 | -4/Cetus | Escorted A7 to Cetus Mainframe 4572 | -4/Cetus | Discovered new exit (range 16) 4611 | -4/Cetus | Spotted Cetus Guard 4611 | -4/Cetus | Spotted Cetus Guard 4613 | -4/Cetus | Spotted Cetus Guard 4616 | -4/Cetus | Allies destroyed Cetus Guard 4620 | -4/Cetus | Spotted Cetus Guard 4623 | -4/Cetus | Allies destroyed Cetus Guard 4628 | -4/Cetus | Allies destroyed Cetus Guard 4640 | -4/Cetus | Allies destroyed Cetus Guard 4641 | -4/Cetus | Discovered exit to Research (range 16) 4648 | -4/Cetus | Met Revision 17 4704 | -4/Cetus | Entered Archives 4704 | -4/Archives | Accompanied by 3 allies (A7) 4709 | -4/Archives | Received a hacking code to weaken MAIN.C 4771 | -4/Archives | Discovered new exit (range 16) 4782 | -4/Archives | Discovered new exit (range 15) 4797 | -4/Archives | Discovered exit to Research (range 15) 4806 | -4/Archives | Build established: Scavenger-Tank 4819 | -4/Archives | Entered Research 4819 | -3/Research | Accompanied by 1 ally 4819 | -3/Research | Evolved 2 slots: Utility x2 5174 | -3/Research | System corruption reached 10% 5180 | -3/Research | Lost 5 parts (1p2n1u1w) 5280 | -3/Research | Lost 20 parts (3p6n6u5w) 5388 | -3/Research | Identified Transdimensional Reconstructor 5388 | -3/Research | Warped through subspace 5394 | -3/Research | Found Gamma Bomb Array 5407 | -3/Research | Spotted B-86 Titan 5511 | -3/Research | Fabricated A-27 Freighter (x1) 5584 | -3/Research | Lost 14 parts (3p7n2u2w) 5947 | -3/Research | Core integrity fell below 50% 5969 | -3/Research | Spotted B-86 Titan 5973 | -3/Research | Lost 6 parts (1p3n1u1w) 6058 | -3/Research | Core integrity fell below 20% 6126 | -3/Research | Destroyed by H-77 Assassin with High-powered Shotgun Last Messages --------------- 06066_ System corrupted: Component data lost. 06074_ Acquired Q-thruster. 06078_ Slug penetrates Wall. 06081_ Terminal disabled. 06094_ ALERT: Hostiles spotted, dispatching reinforcements to Terminal R005. 06101_ K-01 Serf cleans the Terminal. 06103_ Slug penetrates Wall. 06103_ Slug penetrates A-15 Conveyor. 06103_ Penetrated by Slug. 06104_ Slug penetrates H-77 Assassin. 06106_ System corrupted: Matter fused (-5). 06106_ Q-thruster destroyed. 06106_ Penetrated by Slug. 06106_ Slug penetrates Wall. 06110_ Acquired Lgt. Particle Reactor. 06113_ Slug penetrates Wall. 06113_ Penetrated by Slug. 06116_ Slug penetrates Terminal. 06116_ Penetrated by Slug. Map ----- +----------------------------------------------------+ | ???????????????????????????????????????????????# | | ???????????????????????????????????????????????# | | ???????????????????????????????????????????????# | | ???????????????????????????????????????????????# | | ???????????????????????????????????????????????# | | ???????????????????????????????????????????????# | | ???????????????????????????????????????????????# | | ???????????????????????????????????????????????# | | ???????????????????????????????????????????????# | | ????????????????????????????????? ?????????????# | | ??????????????????????????????? ??????????# | | ?????????????????????????????? ######?###### | | ????????????????????????????? # # | | ????????????????????????????? # # | | ????????????????????????????? # + | | ?????????????????????????????? # # | | ??????????????????????????????? # # | | ???????????????????????????????# # ?# | | ???????????????????????????????# ######?# | | ?????????????????????########### #??????# "" | | ?????????????????????# ## ##?????# "" | | ?????????????????????# h # #?????# "" | | ?????????????????????# h""Y # ####### | | ?????????????????????# "" # | | ?????????????????????# T" + | | ?????????????????????# @"" # ! | | ?????????????????????# "" #! ####### "" | | ?????????????????????# # / #?????###+## | | ?????????????????????# #########?????? # | | ?????????????????????##########???????????? # | | ??????????????????????????????????????????# ! # | | ??????????????????????????????????????????# # | | ??????????????????????????????????????????# # | | ??????????????????????????????????????????# # | | ??????????????????????????????????????????######## | | ?????????????????????????????????????????????????? | | ?????????????????????????????????????????????????? | | ?????????????????????????????????????????????????? | | ?????????????????????????????????????????????????? | | ?????????????????????????????????????????????????? | | ?????????????????????????????????????????????????? | | ?????????????????????????????????????????????????? | | ?????????????????????????????????????????????????? | | ?????????????????????????????????????????????????? | | ?????????????????????????????????????????????????? | | ?????????????????????????????????????????????????? | | ?????????????????????????????????????????????????? | | ?????????????????????????????????????????????????? | | ?????????????????????????????????????????????????? | | ?????????????????????????????????????????????????? | +----------------------------------------------------+ Best States ------------- Heat Dissipation 160 Energy Generation 51 Energy Capacity 525 Matter Stores 300 Matter Capacity 300 Sight Range 16 Robot Scan Range 16 Terrain Scan Range 20 Terrain Scan Density 310 Base Temperature (-) 200 Armor Coverage 450 Resistance: KI 20 Resistance: TH 20 Resistance: EX 20 Resistance: EM 20 Resistance: I 20 Resistance: S 20 Resistance: P 20 Core Shielding 30 Propulsion Shielding 90 Evasion (%) 65 Targeting Accuracy 8 Target Analysis 8 Offensive Hacking 20 Item Schematics ----------------- Combat Drone Bay | -7/Data Miner | Free Lgt. Regenerative Plating | -7/Data Miner | Free Cld. Aerolev Unit | -7/Data Miner | Free Gravity Neutralizer | -7/Data Miner | Free Imp. Heavy Machine Gun | -7/Data Miner | Free Nuclear Pulse Array | -7/Data Miner | Free Imp. Thermal Shield | -7/Data Miner | Free Imp. Plasma Cutter | -7/Data Miner | Free Adv. Surge Thruster | -7/Data Miner | Free Robot Schematics ------------------ L-41 Fighter | -7/Factory | Hacked A-15 Conveyor | -7/Data Miner | Free G-50 Soldier | -7/Data Miner | Free S-27 Virus | -7/Data Miner | Free M-28 Smith | -7/Data Miner | Free H-66 Slayer | -7/Data Miner | Free Fabricated ------------ Nuclear Pulse Array | x1 | -4/Factory A-27 Freighter | x1 | -3/Research | Preloaded Repaired ---------- Flight Unit | 10% | -8/Materials Lgt. Nuclear Core | 12% | -4/Factory Studied --------- Lgt. Deuterium Engine | -6/Factory | Hacked Hvy. Rocket Launcher | -6/Factory | Hacked Lgt. Nuclear Core | -6/Factory | Hacked Flight Unit | -6/Factory | Hacked Alien Tech Used ----------------- Integrated Reactor Transdimensional Reconstructor Achievements -------------- None Challenges ------------ None Game ------ Seed CoolantAntisysAnalyzer Manual? 0 Play Time 01:22:30 Cumulative 251.1 hours Start 2025.12.25 @ 21:10:06 End 2025.12.25 @ 22:58:29 Sessions 3 Manual Loads 0 Difficulty Adventurer Special Mode None Game No. 193 Rogue 10 Adventurer 183 Explorer 0 Win Type - Total 17 Types 7/0/7/3/0/0/0/0/0/0 Lore% 75 Gallery% 72 Achievement% 57 Wizard Run 0 Options --------- Layout 1 ASCII 0 Keyboard 0 Movement Mouse Keybinds 0 Fullscreen 1 Font 24/Smallcaps Map View 50x35 Zoom Use 0% Tactical HUD 1 Map Filters NONE Filters NONE Steam 1 RUN: 981f21c1-1a36-43c5-aca2-909d80851963